fUST/lending_fUST_20240509
["ID","MTS","AMOUNT","RATE_DAILY","PERIOD"]
[326651696,1715199094391,-792.42,0.00030684,2]
[326651697,1715199094400,-2779.81,0.00030684,2]
[326651698,1715199094410,-20490.02,0.00030684,2]
[326651699,1715199094419,-800.11,0.00030684,2]
[326651700,1715199094429,-1308.72,0.00030684,2]
[326651701,1715199094438,-902.39,0.00030684,2]
[326651702,1715199094448,-1399.75,0.00030684,2]
[326651703,1715199094458,-664.75,0.00030684,2]
[326651704,1715199094470,-509.7,0.00030684,2]
[326651705,1715199094481,-757.25,0.00030684,2]
[326651706,1715199094491,-1252.54,0.00030684,2]
[326651707,1715199094500,-3456.41,0.00030684,2]
[326651708,1715199094509,-864.02,0.00030684,2]
[326651709,1715199094519,-970.11,0.00030684,2]
[326651710,1715199094529,-300.0,0.000308,3]
[326651711,1715199094538,-300.0,0.000308,3]
[326651712,1715199094549,-2991.66209717,0.000308,15]
[326651713,1715199094559,-1008.90658838,0.000308,120]
[326651714,1715199094569,-335.0,0.0003081,2]
[326651715,1715199094580,-150.0,0.00030935,2]
[326651716,1715199094596,-651.03916786,0.00030958,2]
[326651717,1715199094606,-574.05077935,0.00030958,2]
[326651718,1715199094616,-571.28236874,0.00030958,2]
[326651719,1715199094627,-786.64546624,0.00030958,2]
[326651720,1715199094637,-601.15,0.00030958,2]
[326651721,1715199094647,-1032.79287053,0.00030958,2]
[326651722,1715199094656,-2277.29529886,0.00030958,2]
[326651723,1715199094665,-936.32532807,0.00030958,2]
[326651724,1715199094674,-899.37917036,0.00030958,2]
[326651725,1715199094683,-1818.94947731,0.00030958,2]
[326651726,1715199094693,-1908.21339624,0.00030958,2]
[326651727,1715199094702,-376.45072676,0.00030958,2]
[326651728,1715199094712,-629.49,0.00030958,2]
[326651729,1715199094722,-527.86905033,0.00030958,2]
[326651730,1715199094732,-1086.90236247,0.00030958,2]
[326651731,1715199094742,-530.49800807,0.00030958,2]
[326651732,1715199094752,-7463.09964758,0.00030958,2]
[326651733,1715199094761,-950.51427237,0.00030958,2]
[326651734,1715199094770,-1701.34350093,0.00030958,2]
[326651735,1715199094780,-997.27086789,0.00030958,2]
[326651736,1715199094789,-3523.31266847,0.00030958,2]
[326651737,1715199094799,-505.55235932,0.00030958,2]
[326651738,1715199094808,-745.46880567,0.00030958,2]
[326651739,1715199094818,-1757.74,0.00030958,2]
[326651740,1715199094827,-941.28997034,0.00030958,2]
[326651741,1715199094837,-748.69391723,0.00030958,2]
[326651742,1715199094847,-2015.35,0.00030958,2]
[326651743,1715199094857,-4323.77212276,0.00030958,2]
[326651744,1715199094866,-850.52173399,0.00030958,2]
[326651745,1715199094876,-4309.95564549,0.00030958,2]
[326651746,1715199094886,-1439.63,0.00030958,2]
[326651747,1715199094895,-579.51265487,0.00030958,2]
[326651748,1715199094904,-2030.62167366,0.00030958,2]
[326651749,1715199094914,-949.40915631,0.00030958,2]
[326651750,1715199094924,-4686.98876336,0.00030958,2]
[326651751,1715199094934,-7047.12156305,0.00030958,2]
[326651752,1715199094943,-3516.27875033,0.00030958,2]
[326651753,1715199094953,-7672.46819948,0.00030958,2]
[326651754,1715199094962,-559.08656104,0.00030958,2]
[326651755,1715199094973,-1159.95297408,0.00030958,2]
[326651756,1715199094983,-1109.90103165,0.00030958,2]
[326651757,1715199094992,-808.81752388,0.00030958,2]
[326651758,1715199095002,-569.48701768,0.00030958,2]
[326651759,1715199095011,-792.48,0.00030958,2]
[326651760,1715199095021,-2779.83476003,0.00030958,2]
[326651761,1715199095030,-20490.04712127,0.00030958,2]
[326651762,1715199095040,-800.30700569,0.00030958,2]
[326651763,1715199095050,-1308.9382755,0.00030958,2]
[326651764,1715199095060,-902.5,0.00030958,2]
[326651765,1715199095070,-1399.85636872,0.00030958,2]
[326651766,1715199095080,-664.80604235,0.00030958,2]
[326651767,1715199095090,-509.91526672,0.00030958,2]
[326651768,1715199095099,-757.44899473,0.00030958,2]
[326651769,1715199095111,-1252.63,0.00030958,2]
[326651770,1715199095121,-3456.52411992,0.00030958,2]
[326651771,1715199095131,-864.06,0.00030958,2]
[326651772,1715199095140,-807.0,0.00031,7]
[326651773,1715199095150,-335.0,0.00031068,2]
[326651774,1715199095159,-150.0,0.00031204,2]
[326651775,1715199095169,-620.0,0.0003144,2]
[326651776,1715199095180,-150.0,0.00031473,2]
[326651777,1715199095189,-222.0384,0.00031682,30]
[326651778,1715199095200,-150.0,0.00031742,2]
[326651779,1715199095209,-300.0,0.000318,5]
[326651780,1715199095219,-300.0,0.000318,5]
[326651781,1715199095230,-1150.96841344,0.00032,4]
[326651782,1715199095240,-741.88137675,0.00032,2]
[326651783,1715199095250,-150.0,0.00032011,2]
[326651784,1715199095263,-200.0,0.00032192,120]
[326651785,1715199095273,-150.0,0.0003228,2]
[326651786,1715199095283,-200.0,0.00032324,120]
[326651787,1715199095293,-150.0,0.00032549,2]
[326651788,1715199095306,-335.0,0.00032622,2]
[326651789,1715199095316,-494.0,0.00032694,2]
[326651790,1715199095325,-150.0,0.00032694,2]
[326651791,1715199095335,-979.71133094,0.00032798,30]
[326651792,1715199095348,-300.0,0.000328,7]
[326651793,1715199095357,-300.0,0.000328,7]
[326651794,1715199095367,-150.0,0.00032818,2]
[326651795,1715199095377,-158.9878684,0.00032876,2]
[326651796,1715199095386,-154.10180246,0.00032876,2]
[326651797,1715199095396,-500.0,0.00032876,2]
[326651798,1715199095406,-260.1930287,0.00032876,2]
[326651799,1715199095416,-34049.4535257,0.00032877,2]
[326651800,1715199095425,-1000.0,0.00033,35]
[326651801,1715199095434,-5033.0,0.00033,30]
[326651802,1715199095444,-1000.0,0.00033,30]
[326651803,1715199095454,-500.0,0.00033,30]
[326651804,1715199095463,-259.0,0.00033,2]
[326651805,1715199095473,-259.0,0.00033,2]
[326651806,1715199095482,-620.0,0.00033012,2]
[326651807,1715199095491,-200.0,0.00033038,120]
[326651808,1715199095501,-150.0,0.00033087,2]
[326651809,1715199095511,-153.0,0.00033151,2]
[326651810,1715199095520,-150.0,0.00033356,2]
[326651811,1715199095530,-160.0,0.0003344,3]
[326651812,1715199095539,-200.0,0.00033543,120]
[326651813,1715199095548,-150.0,0.00033625,2]
[326651814,1715199095557,-500.0,0.00033682,30]
[326651815,1715199095567,-300.0,0.000338,8]
[326651816,1715199095576,-300.0,0.000338,8]
[326651817,1715199095586,-280.0,0.000338,7]
[326651818,1715199095596,-280.0,0.000338,7]
[326651819,1715199095605,-561.0,0.000338,7]
[326651820,1715199095615,-160.0,0.00033882,4]
[326651821,1715199095624,-150.0,0.00033894,2]
[326651822,1715199095633,-306.0,0.00033945,2]
[326651823,1715199095643,-466.73173475,0.00034,4]
[326651824,1715199095652,-520.8678915,0.00034,5]
[326651825,1715199095662,-154.64431807,0.00034,7]
[326651826,1715199095671,-381.4206257,0.00034042,2]
[326651827,1715199095681,-150.0,0.00034163,2]
[326651828,1715199095776,-200.0,0.0003422,120]
[326651829,1715199095787,-160.0,0.00034324,5]
[326651830,1715199095796,-158.632901,0.00034399,2]
[326651831,1715199095805,-150.0,0.00034432,2]
[326651832,1715199095814,-44444.0,0.00034444,120]
[326651833,1715199095824,-28537.02621796,0.00034555,10]
[326651834,1715199095833,-200.0,0.00034564,120]
[326651835,1715199095843,-600.0,0.00034593,2]
[326651836,1715199095852,-620.0,0.00034663,2]
[326651837,1715199095862,-200.0,0.00034675,120]
[326651838,1715199095871,-210.0,0.0003468,35]
[326651839,1715199095880,-210.0,0.0003469,35]
[326651840,1715199095889,-150.0,0.00034701,2]
[326651841,1715199095899,-1272.52277787,0.00034728,12]
[326651842,1715199095908,-200.0,0.00034732,120]
[326651843,1715199095917,-160.0,0.00034766,6]
[326651844,1715199095927,-50000.0,0.00034777,120]
[326651845,1715199095937,-1000.0,0.000348,20]
[326651846,1715199095946,-1000.0,0.000348,3]
[326651847,1715199095955,-1000.0,0.000348,3]
[326651848,1715199095965,-1000.0,0.000348,3]
[326651849,1715199095976,-1000.0,0.000348,3]
[326651850,1715199095985,-1000.0,0.000348,3]
[326651851,1715199095995,-1000.0,0.000348,3]
[326651852,1715199096004,-1000.0,0.000348,3]
[326651853,1715199096014,-12073.26868011,0.000349,2]
[326651854,1715199096023,-31551.76365467,0.00034966,8]
[326651855,1715199096033,-150.0,0.0003497,2]
[326651856,1715199096042,-5000.0,0.00035,41]
[326651857,1715199096052,-598.33465811,0.00035,2]
[326651858,1715199096061,-266.57861914,0.00035,4]
[326651859,1715199096070,-5848.68095821,0.00035,4]
[326651860,1715199096080,-10295.8603484,0.00035,2]
[326651861,1715199096089,-241.35994197,0.00035,30]
[326651862,1715199096099,-2787.97453454,0.00035,30]
[326651863,1715199096111,-186.76256977,0.00035,30]
[326651864,1715199096120,-735.28662223,0.00035,14]
[326651865,1715199096129,-165.93,0.00035,120]
[326651866,1715199096139,-33210.69164471,0.00035,7]
[326651867,1715199096148,-13022.0,0.00035,30]
[326651868,1715199096158,-327.0,0.00035,30]
[326651869,1715199096167,-183.07531804,0.00035,4]
[326651870,1715199096177,-646.09332427,0.00035,30]
[326651871,1715199096187,-725.36775721,0.00035,2]
[326651872,1715199096196,-1255.46828562,0.00035,7]
[326651873,1715199096206,-300.0,0.00035,5]
[326651874,1715199096216,-41863.0,0.00035,120]
[326651875,1715199096227,-376.859354,0.00035011,2]
[326651876,1715199096236,-163.810321,0.00035011,2]
[326651877,1715199096245,-357.141866,0.00035011,2]
[326651878,1715199096256,-160.0,0.00035208,7]
[326651879,1715199096269,-150.0,0.00035239,2]
[326651880,1715199096278,-5813.42572978,0.00035322,5]
[326651881,1715199096294,-2870.94199387,0.00035322,2]
[326651882,1715199096304,-160.0,0.00035322,30]
[326651883,1715199096313,-3822.62928322,0.00035322,30]
[326651884,1715199096323,-1474.48509106,0.00035322,120]
[326651885,1715199096331,-505.79035176,0.00035322,30]
[326651886,1715199096343,-150.51004552,0.00035322,30]
[326651887,1715199096352,-269.9181615,0.00035322,120]
[326651888,1715199096361,-653.0,0.00035322,120]
[326651889,1715199096370,-411.0491667,0.00035322,120]
[326651890,1715199096379,-199.96753178,0.00035322,120]
[326651891,1715199096387,-595.45721424,0.00035322,120]
[326651892,1715199096396,-591.01150642,0.00035322,120]
[326651893,1715199096405,-1160.98904233,0.00035322,30]
[326651894,1715199096414,-968.96751337,0.00035322,120]
[326651895,1715199096423,-438.25825452,0.00035322,120]
[326651896,1715199096432,-162.58066573,0.00035322,120]
[326651897,1715199096441,-153.28972869,0.00035322,30]
[326651898,1715199096450,-202.8646281,0.00035322,30]
[326651899,1715199096458,-1011.3020983,0.00035322,120]
[326651900,1715199096468,-1689.08228144,0.00035322,30]
[326651901,1715199096477,-76180.06037292,0.00035322,120]
[326651902,1715199096486,-2308.34436132,0.00035322,30]
[326651903,1715199096696,-500.0,0.00035322,30]
[326651904,1715199096708,-313.7172,0.00035322,30]
[326651905,1715199096720,-1573.3461478,0.00035322,30]
[326651906,1715199096732,-1549.53090692,0.00035322,120]
[326651907,1715199096740,-1536.86216043,0.00035322,35]
[326652072,1715199225438,-3882.17716957,0.00035322,35]
[326652073,1715199225517,-353701.48836975,0.00035322,30]
[326652074,1715199225588,-2857.77133305,0.00035322,120]
[326652075,1715199225660,-285.56428262,0.00035322,120]
[326652076,1715199225730,-4942.92290567,0.00035322,120]
[326652077,1715199225802,-134330.07593934,0.00035322,120]
[326652078,1715199232555,-90416.8917703,0.00035,30]
[326652079,1715199233788,-275.69,0.00035302,35]
[326652080,1715199234346,-150.5,0.00035312,35]
[326652081,1715199235618,-156.17312734,0.00035322,30]
[326652082,1715199236540,-4783.97696002,0.00035494,30]
[326652083,1715199236870,-2913.975509,0.00035616,120]
[326652084,1715199238061,-200.0,0.00035703,120]
[326652085,1715199239268,-200.0,0.00035977,120]
[326652086,1715199239327,-10000.0,0.000369,30]
[326652087,1715199239385,-1104.97222567,0.0003707,31]
[326652088,1715199239444,-3000.0,0.000375,32]
[326652089,1715199239502,-3000.0,0.0003751,32]
[326652090,1715199239561,-3000.0,0.0003752,32]
[326652091,1715199239620,-3000.0,0.0003753,32]
[326652092,1715199239679,-3000.0,0.0003754,32]
[326652093,1715199239736,-5528.554854,0.0003755,32]
[326652094,1715199239794,-369269.26555367,0.000385,60]
[326652095,1715199240124,-500000.0,0.00035322,120]
[326652096,1715199248560,-5151.71892488,0.00035322,120]
[326652097,1715199248618,-158.60993444,0.00035322,30]
[326652098,1715199248678,-1474.62441995,0.00035322,120]
[326652099,1715199248741,-31543.31865234,0.00035322,30]
[326652100,1715199248799,-838.1205304,0.00035322,30]
[326652101,1715199248858,-8000.0,0.00035322,60]
[326652102,1715199248916,-557.0,0.00035322,30]
[326652103,1715199248977,-557.0,0.00035322,30]
[326652104,1715199249044,-557.0,0.00035322,30]
[326652105,1715199249106,-557.0,0.00035322,30]
[326652106,1715199249167,-557.0,0.00035322,30]
[326652107,1715199249228,-557.0,0.00035322,30]
[326652108,1715199249287,-557.0,0.00035322,30]
[326652109,1715199249350,-557.0,0.00035322,30]
[326652110,1715199249409,-557.0,0.00035322,30]
[326652111,1715199249468,-557.0,0.00035322,30]
[326652112,1715199249527,-557.0,0.00035322,30]
[326652113,1715199249585,-557.0,0.00035322,30]
[326652114,1715199249644,-557.0,0.00035322,30]
[326652115,1715199249704,-557.0,0.00035322,30]
[326652116,1715199249764,-557.0,0.00035322,30]
[326652117,1715199249826,-557.0,0.00035322,30]
[326652118,1715199249908,-557.0,0.00035322,30]
[326652119,1715199249969,-557.0,0.00035322,30]
[326652120,1715199250031,-557.0,0.00035322,30]
[326652121,1715199250091,-557.0,0.00035322,30]
[326652122,1715199250151,-557.0,0.00035322,30]
[326652123,1715199250328,-557.0,0.00035322,30]
[326652124,1715199250387,-557.0,0.00035322,30]
[326652125,1715199250444,-557.0,0.00035322,30]
[326652126,1715199250501,-557.0,0.00035322,30]
[326652127,1715199250562,-557.0,0.00035322,30]
[326652128,1715199250622,-557.0,0.00035322,30]
[326652129,1715199250680,-557.0,0.00035322,30]
[326652130,1715199250739,-557.0,0.00035322,30]
[326652131,1715199250797,-557.0,0.00035322,30]
[326652132,1715199250856,-557.0,0.00035322,30]
[326652133,1715199252401,-557.0,0.00035322,30]
[326652134,1715199253029,-557.0,0.00035322,30]
[326652135,1715199253086,-557.0,0.00035322,30]
[326652136,1715199253143,-557.0,0.00035322,30]
[326652137,1715199253203,-474.34579127,0.00035322,30]
[326652138,1715199253279,-557.0,0.00035322,30]
[326652139,1715199253336,-1000.0,0.00035322,120]
[326652140,1715199253395,-1382.82369882,0.00035322,30]
[326652141,1715199253454,-1205.00903784,0.00035322,30]
[326652142,1715199253511,-318679.71,0.00035322,30]
[326652143,1715199253570,-178.25,0.00035322,30]
[326652144,1715199253626,-154.58262591,0.00035322,120]
[326652145,1715199253684,-157.90998658,0.00035322,30]
[326652146,1715199253757,-157.90998658,0.00035322,30]
[326652147,1715199253831,-157.90998658,0.00035322,30]
[326652148,1715199253898,-157.90998658,0.00035322,30]
[326652149,1715199253954,-157.90998658,0.00035322,30]
[326652150,1715199254011,-157.90998658,0.00035322,30]
[326652151,1715199254068,-157.90998658,0.00035322,30]
[326652152,1715199254125,-157.90998658,0.00035322,30]
[326652153,1715199254180,-157.90998661,0.00035322,30]
[326652154,1715199260863,-158276.82045047,0.000385,60]
[326652155,1715199261326,-31400.0,0.0003888,120]
[326652156,1715199262466,-1000.0,0.000398,30]
[326652157,1715199262534,-10000.0,0.000399,120]
[326652158,1715199263164,-6577.85514276,0.000399,30]
[326652159,1715199263787,-1000.0,0.0004,120]
[326652160,1715199264419,-200.0,0.0004,120]
[326652161,1715199264480,-2998.82741362,0.0004,120]
[326652162,1715199264541,-387.42530617,0.0004,120]
[326652163,1715199264600,-38163.97716248,0.0004,120]
[326652164,1715199264658,-1094.079393,0.0004,60]
[326652165,1715199264717,-234.45621295,0.0004,30]
[326652166,1715199264777,-9624.90559884,0.0004,30]
[326652167,1715199264844,-4783.97696002,0.00040494,30]
[326652168,1715199264906,-40828.26339167,0.00041,30]
[326652169,1715199264968,-162.83814602,0.00041,120]
[326652170,1715199265026,-1000.0,0.00041095,120]
[326652171,1715199265087,-1000.0,0.00041095,120]
[326652172,1715199265148,-1000.0,0.00041095,120]
[326652173,1715199265211,-717.80762483,0.00041095,120]
[326652174,1715199265274,-500.0,0.00041096,31]
[326652175,1715199265332,-500.0,0.00041096,31]
[326652176,1715199265392,-500.0,0.00041096,31]
[326652177,1715199265468,-259.80511958,0.00041096,31]
[326652178,1715199265541,-500.0,0.00041096,31]
[326652179,1715199265600,-500.0,0.00041096,31]
[326652180,1715199265661,-500.0,0.00041096,31]
[326652181,1715199265718,-500.0,0.00041096,31]
[326652182,1715199265777,-500.0,0.00041096,31]
[326652183,1715199265837,-500.0,0.00041096,31]
[326652184,1715199265896,-500.0,0.00041096,31]
[326652185,1715199265957,-500.0,0.00041096,31]
[326652186,1715199266016,-500.0,0.00041096,31]
[326652187,1715199266076,-500.0,0.00041096,31]
[326652188,1715199266135,-500.0,0.00041096,31]
[326652189,1715199266569,-500.0,0.00041096,31]
[326652190,1715199266627,-500.0,0.00041096,31]
[326652191,1715199266685,-500.0,0.00041096,31]
[326652192,1715199266750,-500.0,0.00041096,31]
[326652193,1715199266810,-500.0,0.00041096,31]
[326652194,1715199266871,-500.0,0.00041096,31]
[326652195,1715199266927,-500.0,0.00041096,31]
[326652196,1715199267075,-500.0,0.00041096,31]
[326652197,1715199267132,-500.0,0.00041096,31]
[326652198,1715199267191,-500.0,0.00041096,31]
[326652199,1715199267248,-500.0,0.00041096,31]
[326652200,1715199267306,-341.01502866,0.00041096,31]
[326652201,1715199267364,-500.0,0.00041096,31]
[326652202,1715199267420,-500.0,0.00041096,31]
[326652203,1715199267477,-500.0,0.00041096,31]
[326652204,1715199267533,-500.0,0.00041096,31]
[326652205,1715199267590,-500.0,0.00041096,31]
[326652206,1715199267647,-500.0,0.00041096,31]
[326652207,1715199267706,-500.0,0.00041096,31]
[326652208,1715199267766,-500.0,0.00041096,31]
[326652209,1715199267826,-552.3045086,0.00041096,31]
[326652210,1715199267887,-500.0,0.00041096,31]
[326652211,1715199267949,-500.0,0.00041096,31]
[326652212,1715199268013,-500.0,0.00041096,31]
[326652213,1715199268074,-500.0,0.00041096,31]
[326652214,1715199268133,-500.0,0.00041096,31]
[326652215,1715199268195,-500.0,0.00041096,31]
[326652216,1715199268279,-500.0,0.00041096,31]
[326652217,1715199268340,-500.0,0.00041096,31]
[326652218,1715199268402,-500.0,0.00041096,31]
[326652219,1715199268463,-500.0,0.00041096,31]
[326652220,1715199268523,-500.0,0.00041096,31]
[326652221,1715199268582,-500.0,0.00041096,31]
[326652222,1715199268641,-500.0,0.00041096,31]
[326652223,1715199268704,-500.0,0.00041096,31]
[326652224,1715199268763,-500.0,0.00041096,31]
[326652225,1715199268821,-500.0,0.00041096,31]
[326652226,1715199268881,-500.0,0.00041096,31]
[326652227,1715199268940,-500.0,0.00041096,31]
[326652228,1715199269002,-500.0,0.00041096,31]
[326652229,1715199269061,-500.0,0.00041096,31]
[326652230,1715199269118,-500.0,0.00041096,31]
[326652231,1715199269176,-500.0,0.00041096,31]
[326652232,1715199269234,-500.0,0.00041096,31]
[326652233,1715199269292,-500.0,0.00041096,31]
[326652234,1715199269355,-500.0,0.00041096,31]
[326652235,1715199269411,-165.69135258,0.00041096,31]
[326652236,1715199269468,-500.0,0.00041096,31]
[326652237,1715199269526,-500.0,0.00041096,31]
[326652238,1715199269585,-500.0,0.00041096,31]
[326652239,1715199269643,-500.0,0.00041096,31]
[326652240,1715199269701,-500.0,0.00041096,31]
[326652241,1715199269761,-500.0,0.00041096,31]
[326652242,1715199269821,-500.0,0.00041096,31]
[326652243,1715199269884,-500.0,0.00041096,31]
[326652244,1715199269945,-500.0,0.00041096,31]
[326652245,1715199270007,-500.0,0.00041096,31]
[326652246,1715199270065,-500.0,0.00041096,31]
[326652247,1715199270122,-500.0,0.00041096,31]
[326652248,1715199270182,-549.70740577,0.00041096,31]
[326652249,1715199270746,-500.0,0.00041096,31]
[326652250,1715199271312,-164.16031676,0.00041096,31]
[326652251,1715199271931,-2913.975509,0.00041553,120]
[326652252,1715199273116,-444.88237694,0.00042,120]
[326652253,1715199274296,-11683.44132063,0.00042,60]
[326652254,1715199275643,-1697.7015456,0.000425,30]
[326652255,1715199277061,-20700.0,0.00042666,120]
[326652256,1715199278282,-873.86285017,0.000428,60]
[326652257,1715199279590,-1057.04,0.00043,120]
[326652258,1715199280882,-5607.23064022,0.00043,30]
[326652259,1715199280964,-20000.0,0.00043666,120]
[326652260,1715199281032,-500.0,0.00044,120]
[326652261,1715199281093,-5823.77022207,0.00044,120]
[326652262,1715199281154,-10000.0,0.00044888,120]
[326652263,1715199281212,-219.99778371,0.00044999,120]
[326652264,1715199281270,-10000.0,0.00045,120]
[326652265,1715199281330,-2998.82741362,0.00045,120]
[326652266,1715199281390,-151.0,0.00045,120]
[326652267,1715199281453,-4783.97696002,0.00045494,60]
[326652268,1715199281512,-17872.02282984,0.00045565,120]
[326652269,1715199281572,-24906.59919209,0.00045565,120]
[326652270,1715199281632,-151.0,0.00045644,120]
[326652271,1715199281688,-500.0,0.0004566,120]
[326652272,1715199281747,-9130.75482131,0.00045666,120]
[326652273,1715199623556,154.73694719,9.999e-05,2]
[326652274,1715199666010,230.35686114,9.999e-05,2]
[326652275,1715199670744,527.57514376,9.999e-05,2]
[326652351,1715200238964,-177.849487,0.0001589,2]
[326652354,1715200238974,-301.487483,0.0001589,2]
[326652356,1715200238984,-159.984092,0.0001589,2]
[326652359,1715200238994,-1013.83492193,0.00017314,2]
[326652363,1715200239006,-483.60930336,0.00017314,2]
[326652437,1715200243893,-1402.46346853,0.00017314,2]
[326652440,1715200243904,-22000.09230618,0.00017314,2]
[326652442,1715200243914,-6119.6992587,0.00017314,2]
[326652445,1715200243923,-245.80091912,0.00017534,2]
[326652449,1715200243934,-2150.65851168,0.00017634,2]
[326652451,1715200243946,-295.34,0.00017634,2]
[326652453,1715200243958,-1637.09746455,0.00017634,2]
[326652455,1715200243970,-621.12484925,0.00017634,2]
[326652763,1715200258808,-505.77917452,0.00017634,2]
[326652766,1715200258818,-231.5522,0.00017635,2]
[326652768,1715200258827,-158.13417593,0.0001854,2]
[326652770,1715200258839,-193.99110083,0.0001854,2]
[326652773,1715200258848,-475.23279781,0.0001854,2]
[326652775,1715200258857,-891.52667903,0.0001854,2]
[326652777,1715200258866,-236.00965182,0.0001854,2]
[326652779,1715200258875,-205.81993892,0.0001854,2]
[326652780,1715200258885,-52.35428114,0.0001854,2]
[326652781,1715200258897,-257.10417352,0.0001854,2]
[326652782,1715200258908,-299.28457013,0.0001854,2]
[326652784,1715200258917,-527.26583136,0.0001854,2]
[326652786,1715200258927,-106.08307652,0.0001854,2]
[326652788,1715200258939,-1099.18387065,0.0001854,2]
[326652790,1715200258948,-894.24108922,0.0001854,2]
[326652792,1715200258958,-309.33499227,0.00018541,2]
[326652793,1715200258967,-165.9141139,0.00018998,2]
[326652795,1715200258977,-158.632901,0.00019178,2]
[326652797,1715200258986,-294.69541422,0.000199,2]
[326652800,1715200258997,-294.69541422,0.000199,2]
[326652801,1715200259006,-700.71067592,0.000199,2]
[326652803,1715200259015,-5277.44830217,0.00019997,2]
[326652805,1715200259025,-718.32745363,0.00019998,2]
[326652807,1715200259035,-196.87280025,0.00019998,2]
[326652809,1715200259045,-310.37125039,0.00019998,2]
[326652811,1715200259055,-939.47409396,0.00019998,2]
[326652813,1715200259064,-1677.34524306,0.00019998,2]
[326652815,1715200259075,-161.1878028,0.00019998,2]
[326652817,1715200259086,-2453.40430644,0.00019998,2]
[326652819,1715200259097,-154.9286876,0.00019998,2]
[326652821,1715200259106,-893.60953512,0.00019999,2]
[326652822,1715200259115,-5337.06172911,0.0002,5]
[326652825,1715200259126,-8897.06510311,0.0002,5]
[326652826,1715200259135,-7469.69861317,0.0002,2]
[326652828,1715200259146,-6173.0,0.0002,2]
[326652851,1715201433358,-166.738682,0.0001589,2]
[326652853,1715201433368,-5301.85501021,0.00017352,2]
[326652854,1715201433378,-24900.0,0.00017353,2]
[326652857,1715201433387,-563.263874,0.00017366,2]
[326652861,1715201433396,-154.73694719,0.00018,2]
[326652863,1715201433405,-5210.0,0.00018388,2]
[326652865,1715201433414,-215.07580423,0.000184,2]
[326652867,1715201433423,-248.36679693,0.00018443,2]
[326652869,1715201433432,-17476.81618215,0.00018444,2]
[326652871,1715201433442,-991.55469962,0.000185,2]
[326652873,1715201433451,-663.00263243,0.000185,2]
[326652875,1715201433460,-2159.56336193,0.000189,2]
[326652877,1715201433470,-3388.47783665,0.000189,2]
[326652879,1715201433479,-500.0,0.00019178,2]
[326652881,1715201433488,-500.0,0.00019178,2]
[326652883,1715201433498,-500.0,0.00019178,2]
[326652887,1715201433518,-500.0,0.00019178,2]
[326652889,1715201433528,-500.0,0.00019178,2]
[326652891,1715201433538,-500.0,0.00019178,2]
[326652893,1715201433547,-340.45679502,0.00019178,2]
[326652894,1715201433557,-79.9181323,0.00019178,2]
[326653182,1715201451720,-1296.1,0.000189,2]
[326653186,1715201451733,-303.21517535,0.000189,2]
[326653189,1715201451742,-3065.3597777,0.00019177,2]
[326653192,1715201451757,-2236.49523251,0.00019177,2]
[326653195,1715201451767,-420.0818677,0.00019178,2]
[326653198,1715201451776,-417.49289979,0.00019178,2]
[326653424,1715201899846,10208.27715397,0.000266,120]
[326653427,1715202636927,-285.713492,0.0001589,2]
[326653429,1715202636948,-177.849487,0.0001589,2]
[326653432,1715202636959,-508.551127,0.00016257,2]
[326653435,1715202636970,-24900.0,0.00017542,2]
[326653437,1715202636980,-154.73694719,0.00018,2]
[326653439,1715202636991,-10000.0,0.00018546,2]
[326653440,1715202637002,-242.67998948,0.00019076,2]
[326653441,1715202637012,-423.54847616,0.00019176,2]